Cogmind - Beta 9.3 @@@ ROGUE MODE // 2019.12.18 @ 20:43:10 // Winter2019/RPGLIKE Player: Nalzok Result: Destroyed by Y-45 Defender with Heavy Assault Rifle Performance ------------- Evolutions (1) 500 Regions Visited (2) 400 Robots Destroyed (19) 95 Value Destroyed (366) 366 Prototype IDs (0) 0 Alien Tech Used (0) 0 Bonus (0) 0 TOTAL SCORE: 1361 Bonus ------- None Cogmind --------- Core Integrity 0/600 Matter 168/300 Energy 160/160 System Corruption 0% Temperature Cool (14) Movement Walking (120) Location -9/Materials Parts ------- > --- POWER (1) -------- Light Nuclear Core > --- PROPULSION (3) --- Aluminum Leg Aluminum Leg Aluminum Leg > --- UTILITY (1) ------ Utility Shielding > --- WEAPON (1) ------- Light Cannon > --- INVENTORY (2) ---- Light Cannon Grenade Launcher Peak State ------------ > --- POWER ------------ Light Nuclear Core > --- PROPULSION ------- Aluminum Leg Aluminum Leg Aluminum Leg > --- UTILITY ---------- Utility Shielding > --- WEAPON ----------- Light Cannon > --- INVENTORY -------- Light Cannon Grenade Launcher [Rating: 8] Favorites ----------- Power Light Nuclear Core Engine Ion Engine Power Core Light Nuclear Core Propulsion Aluminum Leg Leg Aluminum Leg Utility Utility Shielding Protection Utility Shielding Weapon Light Cannon Ballistic Gun Assault Rifle Ballistic Cannon Light Cannon Build | -11 -10 -9 ------- Run | Scr Mat Mat Slots Evolved 2 | . 2 . Power . | . . . Propulsion 2 | . 2 . Utility . | . . . Weapon . | . . . Parts Attached 8 | . 8 . Power 1 | . 1 . Engine . | . . . Core 1 | . 1 . Reactor . | . . . Propulsion 5 | . 5 . Treads . | . . . Leg 5 | . 5 . Wheel . | . . . Hover . | . . . Flight . | . . . Utility 1 | . 1 . Device . | . . . Storage . | . . . Processor . | . . . Hackware . | . . . Protection 1 | . 1 . Artifact . | . . . Weapon 1 | . 1 . Energy Gun . | . . . Energy Cannon . | . . . Ballistic Gun . | . . . Ballistic Cannon 1 | . 1 . Launcher . | . . . Special Weapon . | . . . Impact Weapon . | . . . Slashing Weapon . | . . . Piercing Weapon . | . . . Special Melee Weapon . | . . . Unidentified Prototypes . | . . . Parts Lost . | . . . Power . | . . . Propulsion . | . . . Utility . | . . . Weapon . | . . . Highest Loss Streak . | . . . Average Slot Usage (%) 89 | . 87 100 Engine 3 | . 4 . Core 13 | . 13 16 Leg 44 | . 43 50 Protection 8 | . 6 16 Ballistic Gun 5 | . 6 . Ballistic Cannon 12 | . 11 16 Naked Turns . | . . . Heaviest Build 9 | 7 9 9 Greatest Support 30 | 10 30 30 Greatest Overweight (x) . | . . . Average Overweight (x) . | . . . Largest Inventory Capacity 2 | . 2 2 Average Capacity 1 | . 1 2 Most Carried 2 | . 2 2 Average Carried 1 | . 1 2 Final Capacity 2 | . 2 2 Final Carried 2 | . 2 2 Class Distribution -------------------- 100% | Mutant Dominant Class ---------------- Mutant | -10/Materials Mutant | -9/Materials Resources | -11 -10 -9 ----------- Run | Scr Mat Mat Matter Collected 415 | 200 163 52 Remotely . | . . . Salvage Created 255 | . 203 52 Parts 27 | . 25 2 Haulers Intercepted 1 | . . 1 Recyclers Shooed . | . . . Parts Field Recycled . | . . . Retrieved Matter . | . . . Parts Self-Destructed . | . . . Prevented . | . . . Kills | -11 -10 -9 ------- Run | Scr Mat Mat Combat Hostiles Destroyed 14 | . 12 2 Guns 4 | . 4 . Cannons 10 | . 8 2 Classes Destroyed 6 | . 5 1 Worker 2 | . 2 . Hauler 1 | . . 1 Operator 1 | . 1 . Watcher 1 | . 1 . Swarmer 8 | . 6 2 Grunt 6 | . 6 . Best Kill Streak 8 | . 8 2 Combat Bots Only 7 | . 7 2 Max Kills in Single Turn 1 | . 1 1 Gunslinging . | . . . Exploded . | . . . Melee . | . . . Uniques/NPCs Destroyed . | . . . Combat | -11 -10 -9 -------- Run | Scr Mat Mat Damage Taken 1174 | . 670 504 Core 963 | . 551 412 Absorbed by Shields . | . . . Redirected to Core 687 | . 394 293 Core Remaining (%) 84 | 100 68 . Volleys Fired 72 | . 55 17 Largest 1 | . 1 1 Hottest 35 | . 35 35 Shots Fired 72 | . 55 17 Gun 21 | . 21 . Cannon 51 | . 34 17 Launcher . | . . . Special . | . . . Kinetic 72 | . 55 17 Thermal . | . . . Explosive . | . . . Electromagnetic . | . . . Robot Hit Streak 16 | . 16 8 Robot Miss Streak 3 | . 3 2 Penetration Max . | . . . Secondary Targets . | . . . Shots Hit Robots 51 | . 40 11 Core Hits 22 | . 19 3 Critical Hits 1 | . 1 . Critical Kills . | . . . Critical Parts Destroyed 1 | . 1 . Melee Attacks . | . . . Impact . | . . . Slashing . | . . . Piercing . | . . . Sneak Attacks . | . . . Combat Hostiles . | . . . Follow-up Attacks . | . . . Damage Inflicted 892 | . 688 204 Guns 186 | . 186 . Cannons 706 | . 502 204 Explosions . | . . . Melee . | . . . Ramming . | . . . Kinetic 892 | . 688 204 Thermal . | . . . Explosive . | . . . Electromagnetic . | . . . Impact . | . . . Slashing . | . . . Piercing . | . . . Highest Corruption . | . . . Average Corruption . | . . . Corruption Purged . | . . . Overload Shots . | . . . Overflow Damage . | . . . Projectiles . | . . . Explosions . | . . . Melee . | . . . Knockbacks 8 | . 3 5 Impact . | . . . Kinetic 8 | . 3 5 Secondary . | . . . Self-Inflicted Damage . | . . . Shots . | . . . Rammed . | . . . Targets Rammed . | . . . Kicked . | . . . Crushed . | . . . Highest Temperature 88 | . 88 29 Average Temperature 46 | . 61 13 Received Heat Transfer 327 | . 264 63 Siege Activations . | . . . Robots Corrupted . | . . . Combat Hostiles . | . . . Parts Fried . | . . . Impact Corruptions . | . . . Robots Melted . | . . . Combat Hostiles . | . . . Parts Melted . | . . . Heat Transferred . | . . . Parts Sabotaged . | . . . Parts Stolen . | . . . Parts Stripped . | . . . Power Chain Reactions . | . . . Missiles Intercepted . | . . . Alert | -11 -10 -9 ------- Run | Scr Mat Mat Peak Influence 344 | . 344 117 Average Influence 143 | . 157 74 Maximum Alert Level 1 | . 1 . Low Security (%) 82 | . 79 100 Level 1 17 | . 20 . Level 2 . | . . . Level 3 . | . . . Level 4 . | . . . Level 5 . | . . . High Security . | . . . Max Security . | . . . Squads Dispatched 1 | . 1 . Investigation . | . . . Extermination . | . . . Reinforcement 1 | . 1 . Assault . | . . . Garrison . | . . . Intercept . | . . . Construction Impeded . | . . . Haulers Reinforced . | . . . Stealth | -11 -10 -9 --------- Run | Scr Mat Mat Distress Signals . | . . . Communications Jammed . | . . . Distress Signals . | . . . Times Spotted 24 | . 18 6 Peak Tracking Total 6 | . 5 6 Tactical Retreats 3 | . 3 . Traps | -11 -10 -9 ------- Run | Scr Mat Mat Traps Triggered . | . . . Indirectly . | . . . Trap Hack Attempts . | . . . Triggered . | . . . Disarmed . | . . . Reprogrammed . | . . . Reused . | . . . Traps Extracted . | . . . Installed . | . . . Triggered . | . . . Machines | -11 -10 -9 ---------- Run | Scr Mat Mat Machines Disabled 2 | . 2 . Max in Single Turn 1 | . 1 . Machines Sabotaged . | . . . Garrisons Compromised . | . . . Overloaded Fab Kills . | . . . Fab Network Shutdowns . | . . . Hacking | -11 -10 -9 --------- Run | Scr Mat Mat Machines Accessed 2 | . 2 . Terminals 2 | . 2 . Fabricators . | . . . Repair Stations . | . . . Recycling Units . | . . . Scanalyzers . | . . . Garrison Access . | . . . Total Hacks 3 | . 3 . Successful 1 | . 1 . Failed 2 | . 2 . Catastrophic . | . . . Database Lockouts . | . . . Manual . | . . . Terminals 3 | . 3 . Fabricators . | . . . Repair Stations . | . . . Recycling Units . | . . . Scanalyzers . | . . . Garrison Access . | . . . Terminal Hacks 1 | . 1 . Record 1 | . 1 . Fabricator Hacks . | . . . Repair Station Hacks . | . . . Recycling Unit Hacks . | . . . Scanalyzer . | . . . Garrison Access Hacks . | . . . Unauthorized Hacks . | . . . Terminals . | . . . Fabricators . | . . . Repair Stations . | . . . Recycling Units . | . . . Scanalyzers . | . . . Garrison Access . | . . . Data Cores Recovered 1 | . 1 . Used . | . . . Hacking Detections 1 | . 1 . Full Trace Events . | . . . Feedback Events . | . . . Feedback Blocked . | . . . Robot Schematics Acquired . | . . . Robots Built . | . . . Matter . | . . . Time . | . . . Total Robot Build Rating . | . . . Part Schematics Acquired . | . . . Parts Built . | . . . Matter . | . . . Time . | . . . Total Part Build Rating . | . . . Parts Repaired . | . . . Time . | . . . Parts Recycled . | . . . Recycled Matter . | . . . Retrieved Matter . | . . . Retrieved Components . | . . . Parts Scanalyzed . | . . . Part Schematics Acquired . | . . . Parts Damaged . | . . . Bothacking | -11 -10 -9 ------------ Run | Scr Mat Mat Used RIF Installer . | . . . Robots Hacked . | . . . Non-combat . | . . . Combat . | . . . Robot Hacks Applied . | . . . Relay Couplers Released . | . . . Robots Rewired . | . . . Allies Hacked . | . . . Hacks Repelled . | . . . Allies | -11 -10 -9 -------- Run | Scr Mat Mat Total Allies . | . . . Largest Group . | . . . Highest-Rated Group . | . . . Highest-Rated Ally . | . . . Total Orders . | . . . Ally Attacks . | . . . Total Damage . | . . . Kills . | . . . Allies Corrupted . | . . . Allies Melted . | . . . Intel | -11 -10 -9 ------- Run | Scr Mat Mat Robot Analysis Total . | . . . Derelict Logs Recovered . | . . . Drone Launches . | . . . Drone Recoveries . | . . . Exploration | -11 -10 -9 ------------- Run | Scr Mat Mat Turns Passed 546 | . 451 95 Spaces Moved 301 | 1 250 50 Core . | . . . Treads . | . . . Legs 301 | 1 250 50 Wheels . | . . . Hover . | . . . Flight . | . . . Fastest Speed 120 | 120 120 120 Average Speed 120 | 120 120 120 Slowest Speed 120 | 120 120 120 Overloaded Moves . | . . . Propulsion Burnouts . | . . . Robots Hopped . | . . . Cave-ins Triggered . | . . . Exploration Rate (%) 21 | 2 54 9 Regions Visited 2 Branch Regions . Pre-discovered Areas . | . . . Known Exits Taken . | . . . Unknown Exits Taken 2 | 1 1 . Scrap Searched . | . . . Spaces Dug . | . . . Terrain Destroyed . | . . . Melee . | . . . Projectile . | . . . AOE . | . . . Actions | -11 -10 -9 --------- Run | Scr Mat Mat Total 414 | . 346 68 Wait 7 | . 6 1 Move 299 | . 249 50 Hop . | . . . Pick Up 3 | . 3 . Fast Attach 4 | . 4 . Attach 1 | . 1 . Detach . | . . . Swap 3 | . 3 . Drop 5 | . 5 . Fire 72 | . 55 17 Melee . | . . . Ram . | . . . Kick . | . . . Crush . | . . . Escape Stasis . | . . . Rewire . | . . . Trap . | . . . Miscellaneous 20 | . 20 . Route ------- -11/Scrapyard -10/Materials -9/Materials History --------- Turn | Location | Event 1 | -11/Scrapyard | Discovered new exit (range 0) 1 | -11/Scrapyard | Entered Materials 95 | -10/Materials | Upgraded with Propulsion slot (x2) 300 | -10/Materials | Build established: Mutant 320 | -10/Materials | Core integrity fell below 50% 345 | -10/Materials | Reached level 2 366 | -10/Materials | Destroyed 7 combat bots 410 | -10/Materials | Discovered new exit (range 5) 452 | -10/Materials | Entered another Materials area 454 | -9/Materials | Reached level 3 527 | -9/Materials | Core integrity fell below 50% 540 | -9/Materials | Core integrity fell below 20% 547 | -9/Materials | Destroyed by Y-45 Defender with Heavy Assault Rifle Last Messages --------------- 00410_ EXIT=FOUND 00419_ K-01 Serf cleans the Processing Tank. 00420_ K-01 Serf collects debris. 00428_ Connecting with Terminal... 00431_ K-01 Serf cleans the Processing Tank. 00437_ Connecting with Terminal... LOCATION=UNKNOWN GOAL=ESCAPE 00454_ Reached level 3. 00461_ Upgraded: Sensor Range (+28) 00481_ A-02 Transporter destroyed. 00485_ Acquired 52 matter. 00516_ S-10 Pest knocked back. 00518_ S-10 Pest destroyed. 00525_ S-10 Pest knocked back. 00530_ K-01 Serf collects debris. 00531_ Destroyed Flight Unit. 00531_ S-10 Pest knocked back. 00535_ S-10 Pest destroyed. 00541_ S-10 Pest knocked back. Map ----- +----------------------------------------------------+ | ?????????????????????????????????????????????????? | | ?????????????????????????????????????????????????? | | ?????????????????????????????????????????????????? | | ?????????????????????????????????????????????????? | | ?????????????????????????????????????????????????? | | ?????????????????????????????????????????????????? | | ?????????????????????????????????????????????????? | | ?????????????????????????????????????????????????? | | ?????????????????????????????????????????????????? | | ?????????????????????????????????????????????????? | | ?????????????????????????????????????????????????? | | ?????????????????????????????????????????????????? | | ?????????????????????????????????????????????????? | | ?????????????????????????????????????????????????? | | ?????????????????????????????????????????????????? | | ?????????????????????? ??????????????????????????? | | ?????????????????????? ??????????????????????????? | | ??????????????????????? ?????????????????????????? | | ??????????????????????? #????????????????????????? | | ???????????????????????? ######??????????????????? | | ????????????????????????? #??????????????????? | | ????????????????????????? #??????????????????? | | ???????????????????#?????? #??????????????????? | | ???????????????????? ????# #??????????????????? | | ????????????????######+#### #??????????????????? | | ????????????????# Y @# #??????????????????? | | ????????????????# =s% #???#############??? | | ????????????????# #s #???# #??? | | ????????????????# /// ###w#???# ! #??? | | ????????????????# // #?# #???# #??? | | ????????????????# // #?# #???# """ """ #??? | | ????????????????# #?# #???#!""""""""" #??? | | ????????????????# #?# #####||""""" " #??? | | ????????????????###########?# +|| || #??? | | ????????????????????????????# ##########+######??? | | ????????????????????????????# #??????# ####### | | ????????????????????????????# #??????# | | ????????????????????????????# #??????# | | ????????????????????????????# #??????# | | ???????????????????????????? #??????# ###+### | | ???????????????????????????? #??????####### | | ???????????????????????????? ?????????????# """ | | ???????????????????????????? ?????????????# """ | | ????????????????????????????%%?????????????# """ | | ????????????????????????????##?????????????# | | ????????????????????????????????????????????###### | | | | | | | | | +----------------------------------------------------+ Best States ------------- Heat Dissipation 25 Energy Generation 14 Energy Capacity 250 Matter Stores 300 Matter Capacity 300 Sight Range 16 Robot Scan Range 28 Terrain Scan Density 10 Utility Shielding 33 Evasion (%) 40 Item Schematics ----------------- None Robot Schematics ------------------ None Fabricated ------------ Nothing Alien Tech Used ----------------- None Achievements -------------- None Challenges ------------ None RPGLIKE | -11 -10 -9 --------- Run | Scr Mat Mat Levels Raised 2 | . 1 1 XP Earned 6420 | 3000 1635 1785 XP Spent 5925 | . 2950 2975 Upgrades 20 | . 6 14 Propulsion Slot 2 | . 2 . Inventory Capacity 2 | . 2 . Sensor Range 14 | . . 14 Ranged Accuracy 2 | . 2 . Protomatter Created 158 | . 145 13 Integrity Restored 417 | . 417 . Core 363 | . 363 . Parts 54 | . 54 . Protomatter Decayed 4 | . 4 . Game ------ Seed ExperimentalForceLeg Manual? 0 Play Time 00:06:24 Cumulative 201.8 hours Start 2019.12.18 @ 20:35:54 End 2019.12.18 @ 20:43:10 Sessions 1 Manual Loads 0 Difficulty Rogue Special Mode Winter2019/RPGLIKE Game No. 324 Rogue 323 Adventurer 0 Explorer 1 Win Type - Total 1 Types 1/0/0/0/0/0/0 Lore% 59 Gallery% 76 Achievement% 46 Wizard Run 0 Options --------- ASCII 1 Keyboard 1 Movement Vi Keybinds 0 Fullscreen 1 Font 14/Cog Map View 72x52 Tactical HUD 1 Map Filters NONE Filters LOW_CONTRAST(13,24,33) Steam 0 RUN: 62cf9cd3-45ac-4cef-8b05-9c0a409d6408